bitfinex-derivatives/quotes_SOLF0:USTF0_20250527
["timestamp","ask_amount","ask_price","bid_price","bid_amount"]
[1748343971725,27.84,176.24,176.22,0.03982525]
[1748343971726,33.5121,176.24,176.22,0.03982525]
[1748343972133,2.64160589,176.23,176.22,0.03982525]
[1748343972326,5.6722,176.23,176.22,0.03982525]
[1748343972527,8.31389014,176.23,176.22,0.03982525]
[1748343972724,5.6722,176.23,176.22,0.03982525]
[1748343972931,5.6722,176.23,176.16,1.29327718]
[1748343972932,2.0319,176.23,176.16,1.29327718]
[1748343973131,3.22504962,176.2,176.16,1.29327718]
[1748343973336,3.22504962,176.18,176.16,1.29327718]
[1748343973532,5.6742,176.17,176.16,1.29327718]
[1748343973726,2.6421123,176.17,176.16,1.29327718]
[1748343973926,2.64215242,176.17,176.15,0.03678514]
[1748343974127,2.6421516,176.16,176.15,0.03678514]
[1748343974631,5.6743,176.17,176.15,0.03678514]
[1748343976232,2.6415866,176.16,176.15,0.03678514]
[1748343976536,5.6743,176.17,176.15,0.03678514]
[1748343977039,5.6743,176.17,176.15,5.71158514]
[1748343977538,2.64158252,176.16,176.15,5.71158514]
[1748343978037,5.6743,176.17,176.15,0.03678514]
[1748343978435,2.64174126,176.16,176.15,0.03678514]
[1748343978640,5.71475385,176.18,176.15,0.03678514]
[1748343978839,27.88075385,176.18,176.15,0.03678514]
[1748343979233,2.6416965,176.17,176.15,5.71148514]
[1748343979433,27.88075385,176.18,176.15,5.71148514]
[1748343979834,33.55465385,176.18,176.15,5.71148514]
[1748343980543,5.6742,176.17,176.15,0.03678514]
[1748343980737,2.64174552,176.16,176.15,0.03678514]
[1748343980934,27.88075385,176.18,176.15,0.03678514]
[1748343981434,2.64174715,176.17,176.15,0.03678514]
[1748343981634,27.88075385,176.18,176.15,0.03678514]
[1748343982338,30.44188878,176.17,176.15,0.03678514]
[1748343982537,7.05779948,176.27,176.16,27.8]
[1748343982739,2.64097638,176.26,176.17,110.37385817]
[1748343982939,2.64078026,176.25,176.17,109.08]
[1748343983238,27.8,176.28,176.17,109.08]
[1748343983430,2.64079804,176.27,176.17,110.37385817]
[1748343983631,0.03746006,176.24,176.2,0.03699833]
[1748343983945,2.53888656,176.23,176.22,5.6724]
[1748343984242,2.53690809,176.23,176.22,5.6724]
[1748343984442,0.03746006,176.24,176.2,0.03699833]
[1748343985036,2.53690403,176.23,176.2,0.03699833]
[1748343985240,0.03746006,176.24,176.2,0.03699833]
[1748343985744,0.03746006,176.24,176.23,5.6722]
[1748343985942,2.57379599,176.24,176.23,5.6722]
[1748343986242,0.03746006,176.24,176.23,5.6722]
[1748343987633,2.57370746,176.24,176.23,5.6722]
[1748343987838,0.03746006,176.24,176.23,5.6722]
[1748343992847,5.6699,176.31,176.27,5.6708]
[1748343993044,2.52997251,176.3,176.24,5.04210982]
[1748343993246,2.52982019,176.29,176.24,32.82210982]
[1748343993450,27.78,176.33,176.24,32.82210982]
[1748343993745,2.52981114,176.32,176.24,32.82210982]
[1748343993947,0.04351669,176.3,176.26,0.03974325]
[1748343994449,0.04351669,176.3,176.29,5.6703]
[1748343997847,1.669e-05,176.3,176.29,5.6703]
[1748343998146,23.35371157,176.53,176.34,17.04]
[1748343998346,17.69111157,176.53,176.42,5.02283253]
[1748343998647,2.51861302,176.52,176.43,27.78]
[1748343998949,2.51861302,176.52,176.41,109.56]
[1748343998950,0.03721666,176.49,176.46,0.03593925]
[1748343999152,0.03721666,176.49,176.46,5.70043925]
[1748343999738,0.03721666,176.49,176.47,5.6645]
[1748344000342,0.03721666,176.49,176.46,5.70063925]
[1748344000953,0.03721666,176.49,176.46,0.03593925]
[1748344001252,5.70121666,176.49,176.46,0.03593925]
[1748344002147,0.03721666,176.49,176.46,0.03593925]
[1748344002361,0.03721666,176.49,176.37,27.76]
[1748344002651,2.0535,176.5,176.36,27.76]
[1748344002853,5.6657,176.44,176.4,5.6667]
[1748344003052,33.4257,176.44,176.4,5.6667]
[1748344003452,33.46802833,176.44,176.4,5.70257772]
[1748344003752,33.46802833,176.44,176.41,5.6663]
[1748344005954,27.80232833,176.44,176.4,0.03587772]
[1748344006360,5.02283253,176.43,176.3,28.7226]
[1748344006553,5.02283253,176.43,176.34,5.6686]
[1748344006749,1.8934,176.42,176.3,27.76]
[1748344006948,5.6686,176.35,176.31,5.6696]
[1748344007257,27.76,176.37,176.31,5.70577506]
[1748344007462,0.0418019,176.35,176.31,5.70577506]
[1748344007660,5.7104019,176.35,176.31,5.70577506]
[1748344009850,5.6687,176.34,176.31,5.70577506]
[1748344010253,0.0418019,176.35,176.31,0.03617506]
[1748344010654,5.6693,176.32,176.31,0.03617506]
[1748344011157,28.28,176.33,176.31,0.03617506]
[1748344011353,5.6691,176.33,176.31,0.03617506]
[1748344011854,33.949,176.34,176.31,0.03617506]
[1748344013466,5.669,176.34,176.31,5.70577506]
[1748344013661,33.9903019,176.35,176.31,0.03617506]
[1748344014962,33.9903019,176.35,176.31,5.70567506]
[1748344015160,5.6687,176.34,176.31,0.03617506]
[1748344015363,28.3218019,176.35,176.31,0.03617506]
[1748344015661,0.0418019,176.35,176.32,5.6693]
[1748344016956,5.7102019,176.35,176.31,5.70567506]
[1748344017259,0.0418019,176.35,176.31,0.03617506]
[1748344018159,0.0418019,176.35,176.32,5.6693]
[1748344019162,5.7102019,176.35,176.31,5.70577506]
[1748344020161,5.7102019,176.35,176.32,5.6693]
[1748344020359,5.7102019,176.35,176.31,0.03617506]
[1748344020861,5.6687,176.34,176.31,5.70567506]
[1748344021758,5.6687,176.34,176.32,5.6693]
[1748344021954,0.0418019,176.35,176.31,0.03617506]
[1748344022357,5.6689,176.34,176.31,0.03617506]
[1748344023165,5.6689,176.34,176.31,5.70587506]
[1748344023561,5.669,176.33,176.31,5.70587506]
[1748344023760,0.0418019,176.35,176.31,0.03617506]
[1748344024265,5.6693,176.33,176.31,0.03617506]
[1748344026764,0.0418019,176.35,176.31,0.03617506]
[1748344026765,5.6693,176.32,176.31,0.03617506]
[1748344029074,8.32734064,176.32,176.31,0.03617506]
[1748344029367,5.6693,176.32,176.31,0.03617506]
[1748344029567,36.60734064,176.32,176.31,0.03617506]
[1748344029758,33.9493,176.32,176.31,0.03617506]
[1748344029964,36.60735729,176.32,176.31,0.03617506]
[1748344030271,33.9493,176.32,176.31,0.03617506]
[1748344030971,36.60735729,176.32,176.31,0.03617506]
[1748344031270,36.61558128,176.32,176.31,0.03617506]
[1748344031972,36.61570188,176.32,176.31,0.03617506]
[1748344032469,36.61569041,176.32,176.31,0.03617506]
[1748344032865,36.619363,176.32,176.31,0.03617506]
[1748344033169,36.61936704,176.32,176.31,0.03617506]
[1748344033373,33.9493,176.32,176.31,0.03617506]
[1748344033668,36.62003916,176.32,176.31,0.03617506]
[1748344034266,30.95073916,176.32,176.26,5.671]
[1748344034462,4.58687375,176.31,176.26,5.671]
[1748344034673,2.67097375,176.3,176.26,5.671]
[1748344034867,8.34137497,176.29,176.26,5.671]
[1748344035070,1.9159,176.31,176.27,5.6709]
[1748344035269,5.6701,176.3,176.27,5.70799904]
[1748344035670,0.03880775,176.31,176.27,0.03709904]
[1748344036372,0.03880775,176.31,176.3,5.67]
[1748344036562,0.03880775,176.31,176.27,0.03709904]
[1748344037270,0.03880775,176.31,176.28,5.6706]
[1748344037465,2.67213187,176.3,176.28,5.6706]
[1748344037671,2.67213187,176.3,176.27,0.03709904]
[1748344037883,2.67213187,176.3,176.27,5.70789904]
[1748344038171,2.67213187,176.3,176.27,0.03709904]
[1748344038370,2.67236858,176.29,176.27,0.03709904]
[1748344038570,2.67213187,176.3,176.27,0.03709904]
[1748344039075,2.67213187,176.3,176.28,5.6704]
[1748344039272,2.67262777,176.29,176.28,5.6704]
[1748344039473,2.67213187,176.3,176.28,5.6704]
[1748344039671,2.67332188,176.29,176.28,5.6704]
[1748344039873,2.67213187,176.3,176.27,5.70789904]
[1748344040072,2.67396596,176.29,176.27,0.03709904]
[1748344040272,4.53833187,176.3,176.27,0.03709904]
[1748344040571,32.81833187,176.3,176.27,0.03709904]
[1748344040777,2.67418279,176.29,176.27,0.03709904]
[1748344040980,2.67418279,176.28,176.27,0.03709904]
[1748344041174,2.67421159,176.28,176.27,0.03709904]
[1748344041477,2.67420754,176.28,176.27,0.03709904]
[1748344041670,2.67420754,176.28,176.27,5.70799904]
[1748344041870,5.6705,176.29,176.27,0.03709904]
[1748344042271,2.67447903,176.28,176.27,0.03709904]
[1748344042471,5.6705,176.29,176.27,0.03709904]
[1748344043080,5.6706,176.28,176.27,0.03709904]
[1748344043375,32.81833187,176.3,176.27,0.03709904]
[1748344043571,8.3448668,176.29,176.27,0.03709904]
[1748344043773,2.6744668,176.28,176.27,0.03709904]
[1748344043974,2.67447903,176.28,176.27,0.03709904]
[1748344044175,5.6704,176.29,176.27,0.03709904]
[1748344044781,2.67447498,176.28,176.27,0.03709904]
[1748344045082,5.6704,176.29,176.27,0.03709904]
[1748344046086,8.34508037,176.28,176.27,0.03709904]
[1748344046385,8.34507903,176.28,176.27,0.03709904]
[1748344046587,5.6706,176.28,176.27,0.03709904]
[1748344047471,2.67455307,176.28,176.21,0.94631397]
[1748344047674,2.0573,176.29,176.21,0.94631397]
[1748344047875,2.67476059,176.28,176.24,5.6719]
[1748344048082,2.0573,176.29,176.24,5.6719]
[1748344048083,8.34576059,176.27,176.24,5.6719]
[1748344048279,5.671,176.27,176.24,5.6719]
[1748344048480,5.6713,176.26,176.24,5.71091015]
[1748344048780,0.03577834,176.27,176.24,0.03901015]
[1748344048978,8.34628041,176.26,176.24,0.03901015]
[1748344049176,0.03577834,176.27,176.24,0.03901015]
[1748344049483,5.6716,176.25,176.24,0.03901015]
[1748344049679,8.34650295,176.25,176.24,0.03901015]
[1748344050679,5.6723,176.23,176.21,5.6728]
[1748344050885,2.67490295,176.22,176.21,5.6728]
[1748344051079,5.6723,176.23,176.21,5.6728]
[1748344051976,5.6723,176.23,176.2,5.71210769]
[1748344052780,5.6723,176.23,176.21,5.6729]
[1748344053582,5.6726,176.22,176.2,5.71220769]
[1748344055291,0.0370677,176.24,176.2,0.03910769]
[1748344056885,0.0370677,176.24,176.21,5.6728]
[1748344057084,5.7090677,176.24,176.21,5.6728]
[1748344057683,0.0370677,176.24,176.22,5.6725]
[1748344058688,0.0370677,176.24,176.21,5.6727]
[1748344059291,0.0370677,176.24,176.22,5.6725]
[1748344059994,5.7092677,176.24,176.21,5.6727]
[1748344061496,5.7092677,176.24,176.22,5.6725]
[1748344062991,5.7092677,176.24,176.21,5.6727]
[1748344063588,5.6723,176.23,176.21,5.6727]
[1748344063792,5.6723,176.23,176.2,5.71210769]
[1748344064191,0.0370677,176.24,176.23,5.6722]
[1748344074997,6.77e-05,176.24,176.23,5.6722]
[1748344075197,2.67213187,176.3,176.29,5.6703]
[1748344075706,2.67213187,176.3,176.28,5.6705]
[1748344075903,2.67213187,176.3,176.25,110.12520739]
[1748344076103,2.67213187,176.3,176.26,0.04363072]
[1748344076104,5.71222054,176.29,176.26,0.04363072]
[1748344076307,5.71222054,176.29,176.26,5.71463072]
[1748344076606,0.04172054,176.29,176.26,0.04363072]
[1748344077103,0.04172054,176.29,176.27,5.6707]
[1748344078911,0.04172054,176.29,176.28,5.6706]
[1748344080204,2.71060585,176.29,176.28,5.6706]
[1748344080403,0.04172054,176.29,176.27,5.6708]
[1748344080806,0.04172054,176.29,176.26,0.04363072]
[1748344081007,5.6709,176.27,176.26,0.04363072]
[1748344081442,8.3500982,176.27,176.26,0.04363072]
[1748344082109,2.67914752,176.27,176.26,0.04363072]
[1748344082307,5.6707,176.28,176.26,0.04363072]
[1748344082815,2.67913264,176.27,176.26,0.04363072]
[1748344083917,5.6707,176.28,176.26,0.04363072]
[1748344084113,2.67567015,176.27,176.26,0.04363072]
[1748344084429,2.67557162,176.27,176.26,0.04363072]
[1748344084601,8.34647162,176.27,176.26,0.04363072]
[1748344085304,5.6709,176.27,176.26,0.04363072]
[1748344085503,5.6708,176.28,176.26,0.04363072]
[1748344085707,2.67356462,176.27,176.26,0.04363072]
[1748344085910,2.67356489,176.27,176.26,0.04363072]
[1748344086204,2.67370632,176.27,176.26,0.04363072]
[1748344086815,8.34460632,176.27,176.26,0.04363072]
[1748344087709,5.6709,176.27,176.26,0.04363072]
[1748344088520,8.34459404,176.27,176.26,0.04363072]
[1748344089511,8.34428751,176.27,176.26,0.04363072]
[1748344089714,8.34429156,176.27,176.26,0.04363072]
[1748344090014,5.6709,176.27,176.26,0.04363072]
[1748344090517,8.34429156,176.27,176.26,0.04363072]
[1748344090820,8.34453516,176.27,176.26,0.04363072]
[1748344091014,5.6709,176.27,176.26,0.04363072]
[1748344091714,8.34457007,176.27,176.26,0.04363072]
[1748344092316,8.3445823,176.27,176.26,0.04363072]
[1748344092623,5.6709,176.27,176.26,0.04363072]
[1748344092815,8.34457007,176.27,176.26,0.04363072]
[1748344093016,5.6709,176.27,176.26,0.04363072]
[1748344093618,8.34469628,176.27,176.26,0.04363072]
[1748344094019,8.34469567,176.27,176.26,0.04363072]
[1748344094318,5.6709,176.27,176.26,0.04363072]
[1748344094519,5.6726,176.22,176.19,0.94471761]
[1748344094821,5.6726,176.22,176.2,5.673]
[1748344095126,2.67341572,176.21,176.2,5.673]
[1748344095423,0.03738251,176.22,176.21,5.6729]
[1748344095818,2.71083884,176.22,176.21,5.6729]
[1748344096013,0.03738251,176.22,176.21,5.6729]
[1748344096218,2.71052048,176.22,176.21,5.6729]
[1748344096423,0.03738251,176.22,176.21,5.6729]
[1748344096924,5.70988251,176.22,176.2,5.673]
[1748344097712,2.67313287,176.21,176.2,5.673]
[1748344098121,5.70988251,176.22,176.2,5.673]
[1748344098321,2.67226056,176.21,176.2,5.673]
[1748344098624,0.03738251,176.22,176.21,5.6729]
[1748344100028,2.70928308,176.22,176.21,5.6729]
[1748344100325,0.03738251,176.22,176.21,5.6729]
[1748344100723,2.70884105,176.22,176.21,5.6729]
[1748344100917,5.8658,176.29,176.26,5.6709]
[1748344101125,33.9258,176.29,176.21,0.92927052]
[1748344101322,33.9258,176.29,176.22,0.92927052]
[1748344101726,2.67213187,176.3,176.22,0.92927052]
[1748344102029,2.67213187,176.3,176.25,0.92927052]
[1748344102030,0.04051019,176.28,176.25,0.92927052]
[1748344102221,0.04051019,176.28,176.27,5.6709]
[1748344104417,4.206e-05,176.3,176.29,5.6703]
[1748344113736,4.206e-05,176.3,176.28,0.03839733]
[1748344114332,4.206e-05,176.3,176.29,5.6703]
[1748344130665,2.604e-05,176.31,176.3,5.67]
[1748344131650,1.946,176.39,176.38,5.6674]
[1748344131849,1.946,176.39,176.3,11.3399]
[1748344132050,1.946,176.39,176.3,12.21546178]
[1748344132761,0.03972386,176.36,176.33,0.03922876]
[1748344132962,0.03972386,176.36,176.35,5.6684]
[1748344134763,1.9295,176.46,176.35,114.92]
[1748344134965,1.9295,176.46,176.38,5.91161904]
[1748344135156,4.0488,176.51,176.38,5.91161904]
[1748344135360,1.9295,176.5,176.45,5.6649]
[1748344135861,5.6645,176.48,176.46,0.03844845]
[1748344136061,0.03611355,176.49,176.46,0.03844845]
[1748344136266,5.6645,176.48,176.46,0.03844845]
[1748344137454,5.6645,176.47,176.46,0.03844845]
[1748344137660,0.03611355,176.49,176.46,0.03844845]
[1748344138267,5.6645,176.48,176.46,0.03844845]
[1748344140273,5.6645,176.47,176.46,0.03844845]
[1748344142771,8.19951778,176.47,176.46,0.03844845]
[1748344142967,5.6645,176.47,176.46,0.03844845]
[1748344144873,5.6645,176.47,176.38,28.1]
[1748344145075,2.53504732,176.46,176.38,28.1]
[1748344145367,28.1,176.46,176.38,28.1]
[1748344145578,5.6657,176.44,176.38,28.1]
[1748344145967,2.57865049,176.43,176.39,0.03744941]
[1748344146165,2.53516888,176.42,176.39,0.04100713]
[1748344146368,2.53516888,176.41,176.39,0.04100713]
[1748344146670,2.53516608,176.4,176.39,0.04100713]
[1748344146871,6.158e-05,176.4,176.39,0.04100713]
[1748344147064,6.83e-06,176.43,176.42,5.6661]
[1748344147265,30.0295,176.5,176.42,28.1]
[1748344147471,1.9295,176.5,176.42,28.1]
[1748344148380,0.03757849,176.48,176.44,0.03782375]
[1748344149376,0.03757849,176.48,176.47,5.6645]
[1748344151369,0.03757849,176.48,176.44,0.03782375]
[1748344151674,0.03757849,176.48,176.46,5.6647]
[1748344151870,0.03757849,176.48,176.44,0.03782375]
[1748344152574,0.03757849,176.48,176.45,5.6649]
[1748344152770,0.03757849,176.48,176.44,0.03782375]
[1748344153177,5.6651,176.46,176.44,0.03782375]
[1748344153980,5.6652,176.45,176.44,0.03782375]
[1748344154276,28.1,176.47,176.44,0.03782375]
[1748344154976,5.665,176.46,176.44,0.03782375]
[1748344155282,28.1,176.47,176.44,0.03782375]
[1748344155575,5.6652,176.45,176.44,0.03782375]
[1748344155772,28.1,176.47,176.36,28.1]
[1748344156072,5.6662,176.42,176.36,28.1]
[1748344156374,4.0195,176.44,176.36,28.1]
[1748344156575,28.1,176.43,176.33,28.1]
[1748344156770,5.70686679,176.4,176.37,5.6675]
[1748344158072,5.6671,176.39,176.36,0.03794674]
[1748344158275,0.03986679,176.4,176.36,0.03794674]
[1748344159273,5.6671,176.39,176.36,5.70584674]
[1748344159778,5.70676679,176.4,176.37,5.6675]
[1748344159981,0.03986679,176.4,176.37,5.6675]
[1748344160579,0.03986679,176.4,176.38,5.6673]
[1748344161282,0.03986679,176.4,176.39,5.6671]
[1748344170386,6.679e-05,176.4,176.39,5.6671]
[1748344171880,1.9427,176.47,176.46,5.6649]
[1748344172281,1.9427,176.47,176.41,28.2]
[1748344172876,1.9427,176.47,176.42,0.03863171]
[1748344172877,0.04350402,176.46,176.42,0.03863171]
[1748344173278,5.6657,176.44,176.42,0.03863171]
[1748344174091,5.6657,176.44,176.42,5.70473171]
[1748344174492,5.6653,176.45,176.43,5.6656]
[1748344175490,0.04350402,176.46,176.42,5.70463171]
[1748344175491,5.6655,176.44,176.42,5.70463171]
[1748344176084,0.04350402,176.46,176.43,5.6658]
[1748344176085,5.6653,176.45,176.43,5.6658]
[1748344177488,0.04350402,176.46,176.42,0.03863171]
[1748344178987,5.6653,176.45,176.42,0.03863171]
[1748344180293,5.6653,176.45,176.43,5.6657]
[1748344182994,5.6653,176.45,176.42,5.70463171]
[1748344183795,5.6653,176.45,176.43,5.6658]
[1748344184697,5.70840402,176.46,176.43,5.6658]
[1748344185598,0.04350402,176.46,176.42,0.03863171]
[1748344186597,5.6653,176.45,176.42,5.70453171]
[1748344186795,0.04350402,176.46,176.42,5.70453171]
[1748344187298,5.6655,176.44,176.42,5.70453171]
[1748344188599,5.6658,176.43,176.42,0.03863171]
[1748344191100,28.2,176.44,176.42,0.03863171]
[1748344192000,33.8657,176.44,176.42,5.70463171]
[1748344192199,28.2,176.44,176.42,0.03863171]
[1748344192399,2.05800402,176.46,176.42,0.03863171]
[1748344194602,7.72300402,176.46,176.43,5.6658]
[1748344195301,5.6652,176.45,176.43,5.6658]
[1748344195505,2.05800402,176.46,176.43,5.6658]
[1748344196204,7.72310402,176.46,176.43,5.6658]
[1748344197707,5.6652,176.45,176.43,5.6658]
[1748344197903,5.6652,176.45,176.42,5.70473171]
[1748344199697,7.72290402,176.46,176.42,0.03863171]
[1748344199903,2.05800402,176.46,176.42,0.03863171]
[1748344200299,7.72290402,176.46,176.43,5.6658]
[1748344200608,7.72290402,176.46,176.42,0.03863171]
[1748344201002,7.72290402,176.46,176.43,5.6655]
[1748344201808,7.72290402,176.46,176.44,5.6654]
[1748344202008,0.04350402,176.46,176.42,0.03863171]
[1748344202507,0.04350402,176.46,176.45,5.6652]
[1748344205514,0.04350402,176.46,176.42,0.03863171]
[1748344206206,0.04350402,176.46,176.43,5.6656]
[1748344206408,5.70850402,176.46,176.43,5.6656]
[1748344206715,5.70850402,176.46,176.44,5.6655]
[1748344206916,5.6652,176.45,176.42,0.03863171]
[1748344207110,0.04350402,176.46,176.42,0.03863171]
[1748344207415,0.04350402,176.46,176.43,5.6656]
[1748344207611,5.70850402,176.46,176.43,5.6656]
[1748344209012,0.04350402,176.46,176.42,0.03863171]
[1748344209613,0.04350402,176.46,176.45,5.6652]
[1748344213312,0.04350402,176.46,176.44,5.6654]
[1748344213617,0.04350402,176.46,176.42,0.85351463]
[1748344214616,0.04350402,176.46,176.44,5.6654]
[1748344215813,0.04350402,176.46,176.45,5.6652]
[1748344225524,0.04350402,176.46,176.44,5.6654]
[1748344225823,0.04350402,176.46,176.42,0.83717173]
[1748344226224,0.04350402,176.46,176.45,5.6652]
[1748344239931,0.04350402,176.46,176.44,5.6654]
[1748344240834,0.04350402,176.46,176.42,0.03863171]
[1748344241029,0.04350402,176.46,176.45,5.6652]
[1748344256039,0.04350402,176.46,176.43,6.46511527]
[1748344256245,0.04350402,176.46,176.43,0.79941527]
[1748344256449,5.6655,176.44,176.43,0.79941527]
[1748344256744,0.04350402,176.46,176.42,0.03863171]
[1748344256745,28.1,176.45,176.42,0.03863171]
[1748344257349,28.1,176.45,176.36,1.06534314]
[1748344257551,5.03605726,176.42,176.34,1.06534314]
[1748344257748,5.668,176.37,176.34,1.06534314]
[1748344258253,0.04045801,176.37,176.34,0.03613456]
[1748344258646,28.14045801,176.37,176.34,0.03613456]
[1748344259351,5.6681,176.36,176.34,0.03613456]
[1748344260048,33.80825801,176.37,176.34,0.03613456]
[1748344260351,33.80825801,176.37,176.34,5.70473456]
[1748344260552,5.6681,176.36,176.34,0.03613456]
[1748344260757,28.14045801,176.37,176.34,0.03613456]
[1748344261154,5.6681,176.36,176.34,0.03613456]
[1748344262254,5.6684,176.35,176.34,0.03613456]
[1748344262452,7.7216,176.35,176.34,0.03613456]
[1748344263047,5.6689,176.34,176.27,28.1]
[1748344263357,5.6689,176.34,176.3,5.6697]
[1748344263654,5.669,176.33,176.3,5.6697]
[1748344264053,5.70960817,176.33,176.3,5.71196552]
[1748344265160,33.80960817,176.33,176.3,5.71196552]
[1748344265457,5.6694,176.32,176.3,0.04226552]
[1748344265661,28.14060817,176.33,176.21,28.1]
[1748344265957,5.6702,176.3,176.26,5.6711]
[1748344266154,1.9515,176.31,176.26,5.6711]
[1748344266861,0.04163103,176.3,176.27,0.0422355]
[1748344267152,28.12,176.29,176.18,137.4]
[1748344267346,5.6711,176.27,176.18,28.12]
[1748344267951,0.03715522,176.24,176.21,0.03829838]
[1748344268356,0.03715522,176.24,176.11,31.9842]
[1748344268558,5.03605726,176.24,176.11,28.12]
[1748344269259,0.03803067,176.19,176.16,0.03690634]
[1748344269461,28.12,176.18,176.16,0.03690634]
[1748344269654,5.6744,176.17,176.07,28.12]
[1748344269849,28.12,176.18,176.07,28.12]
[1748344270054,5.6746,176.16,176.11,5.6759]
[1748344270564,5.71832025,176.15,176.12,0.04328711]
[1748344270961,28.12,176.14,176.12,0.04328711]
[1748344271863,0.04322025,176.15,176.14,5.6751]
[1748344272461,0.04322025,176.15,176.13,5.6752]
[1748344272660,0.04322025,176.15,176.12,0.04328711]
[1748344273471,0.04322025,176.15,176.14,5.6751]
[1748344282570,0.04322025,176.15,176.13,5.6754]
[1748344282972,0.04322025,176.15,176.12,0.04328711]
[1748344283172,0.04322025,176.15,176.12,5.71898711]
[1748344284073,0.04322025,176.15,176.12,0.04328711]
[1748344284471,0.04322025,176.15,176.12,5.71908711]
[1748344284675,0.04322025,176.15,176.12,0.04328711]
[1748344285075,0.04322025,176.15,176.13,5.6752]
[1748344285977,0.04322025,176.15,176.12,0.04328711]
[1748344286579,5.6755,176.13,176.12,0.04328711]
[1748344286781,33.9555,176.13,176.12,0.04328711]
[1748344289977,35.9242,176.13,176.12,0.04328711]
[1748344291882,28.28,176.13,176.12,0.04328711]
[1748344293183,28.28,176.13,176.03,137.9]
[1748344293184,28.28,176.13,176.03,28.28]
[1748344293589,1.9207,176.14,176.03,28.28]
[1748344293880,28.28,176.15,176.04,5.03605726]
[1748344294286,0.04103102,176.11,176.08,0.0429446]
[1748344295682,0.04103102,176.11,176.1,5.6764]
[1748344297986,0.04103102,176.11,176.09,5.6766]
[1748344298285,0.04103102,176.11,176.08,0.0429446]
[1748344298685,0.04103102,176.11,176.1,5.6764]
[1748344300885,5.71733102,176.11,176.08,5.7197446]
[1748344301078,0.04103102,176.11,176.08,0.0429446]
[1748344301387,5.6765,176.1,176.08,0.0429446]
[1748344302787,5.71723102,176.11,176.08,0.0429446]
[1748344303186,0.04103102,176.11,176.08,0.0429446]
[1748344303589,5.6765,176.1,176.08,0.0429446]
[1748344303783,28.32103102,176.11,175.96,28.28]
[1748344303993,2.044,176.1,175.96,28.28]
[1748344304693,5.6774,176.07,175.96,28.28]
[1748344304995,0.0433952,176.05,176.01,0.03954023]
[1748344305595,0.0433952,176.05,176.04,5.6784]
[1748344319808,9.52e-05,176.05,176.04,5.6784]
[1748344321102,9.52e-05,176.05,176.04,34.3984]
[1748344321898,9.52e-05,176.05,176.04,35.18353523]
[1748344322210,9.52e-05,176.05,176.04,5.6784]
[1748344328597,9.52e-05,176.05,176.03,5.6786]
[1748344328999,9.52e-05,176.05,176.01,0.03954023]
[1748344330011,9.52e-05,176.05,176.03,5.6785]
[1748344330808,9.52e-05,176.05,176.04,5.6784]
[1748344333014,9.52e-05,176.05,176.01,0.03954023]
[1748344333407,9.52e-05,176.05,176.03,5.6786]
[1748344334418,5.6781952,176.05,176.02,5.6789]
[1748344335616,5.6784,176.04,176.02,5.6789]
[1748344337412,5.6784,176.04,176.01,5.71874023]
[1748344338405,5.6788,176.03,176.01,0.03954023]
[1748344338613,9.52e-05,176.05,176.01,0.03954023]
[1748344339213,5.6782952,176.05,176.02,5.6788]
[1748344339818,5.6784,176.04,176.02,5.6788]
[1748344340004,9.52e-05,176.05,176.02,5.6788]
[1748344340210,5.6783952,176.05,176.02,5.6788]
[1748344340411,9.52e-05,176.05,176.02,5.6788]
[1748344340908,5.6781952,176.05,176.02,5.6788]
[1748344341313,5.6784,176.04,176.02,5.6788]
[1748344342017,5.6784,176.04,176.01,5.71884023]
[1748344342614,5.6788,176.03,176.01,0.03954023]
[1748344343416,5.679,176.02,176.01,0.03954023]
[1748344343919,5.6788,176.03,176.01,0.03954023]
[1748344345126,34.3985,176.04,176.01,0.03954023]
[1748344345820,34.3985,176.04,176.01,5.71874023]
[1748344347514,5.6788,176.03,176.01,0.03954023]
[1748344348523,5.6788,176.03,176.01,5.71884023]
[1748344350019,34.3985,176.04,176.01,5.71884023]
[1748344350219,28.72,176.04,176.01,0.03954023]
[1748344350921,5.6789,176.03,176.01,0.03954023]
[1748344353321,28.72,176.04,175.9,28.6]
[1748344353526,1.9474,176.02,175.9,28.6]
[1748344353934,5.6808,175.97,175.9,28.6]
[1748344354423,0.03585847,175.95,175.92,0.03863935]
[1748344354728,0.03585847,175.95,175.93,5.6817]
[1748344355923,0.03585847,175.95,175.92,0.03863935]
[1748344356819,0.03585847,175.95,175.93,5.6818]
[1748344357225,0.03585847,175.95,175.92,0.03863935]